fUSD/lending_fUSD_20240511
["ID","MTS","AMOUNT","RATE_DAILY","PERIOD"]
[326830398,1715471448115,-153.5496588,0.00017367,2]
[326830399,1715471448124,-800.0,0.0001737,2]
[326830400,1715471448133,-800.0,0.0001737,2]
[326830401,1715471448142,-205.63148809,0.00017432,2]
[326830402,1715471448151,-150.0,0.00017457,2]
[326830403,1715471448160,-150.0,0.00017462,2]
[326830404,1715471448169,-300.0,0.00017463,2]
[326830405,1715471448178,-156.82624843,0.00017498,2]
[326830406,1715471448187,-150.0,0.000175,2]
[326830407,1715471448196,-2500.0,0.000175,2]
[326830408,1715471448205,-150.0,0.000175,2]
[326830409,1715471448214,-399.28215327,0.00017525,2]
[326830410,1715471448223,-150.0,0.00017569,2]
[326830411,1715471448232,-166.94,0.00017573,2]
[326830412,1715471448241,-150.0,0.0001758,2]
[326830413,1715471448250,-150.0,0.00017586,2]
[326830414,1715471448259,-155.1910345,0.00017604,2]
[326830415,1715471448268,-150.0,0.00017607,2]
[326830416,1715471448277,-153.97788333,0.00017608,2]
[326830417,1715471448286,-150.0,0.00017613,2]
[326830418,1715471448295,-150.0,0.00017614,2]
[326830419,1715471448304,-150.0,0.00017619,2]
[326830420,1715471448313,-150.0,0.00017624,2]
[326830421,1715471448322,-150.0,0.00017628,2]
[326830422,1715471448330,-150.0,0.00017629,2]
[326830423,1715471448339,-150.0,0.00017631,2]
[326830424,1715471448348,-150.0,0.00017637,2]
[326830425,1715471448361,-155.5253498,0.00017639,2]
[326830426,1715471448370,-150.0,0.0001764,2]
[326830427,1715471448380,-150.0,0.00017641,2]
[326830428,1715471448390,-150.0,0.00017641,2]
[326830429,1715471448400,-150.0,0.00017644,2]
[326830430,1715471448409,-150.0,0.00017646,2]
[326830431,1715471448418,-150.0,0.00017646,2]
[326830432,1715471448429,-150.0,0.00017648,2]
[326830433,1715471448438,-150.0,0.00017656,2]
[326830434,1715471448449,-150.0,0.00017664,2]
[326830435,1715471448459,-150.0,0.00017665,2]
[326830436,1715471448468,-150.0,0.00017666,2]
[326830437,1715471448478,-150.0,0.00017674,2]
[326830438,1715471448490,-5334.0655,0.0001768,2]
[326830439,1715471448500,-39121.8037,0.0001768,2]
[326830440,1715471448510,-100000.0,0.0001768,2]
[326830441,1715471448521,-4875.4922,0.0001768,2]
[326830442,1715471448531,-151.0,0.0001768,2]
[326830443,1715471448541,-151.0,0.0001768,2]
[326830444,1715471448550,-151.0,0.0001768,2]
[326830445,1715471448559,-151.0,0.0001768,2]
[326830446,1715471448568,-151.0,0.0001768,2]
[326830447,1715471448576,-151.0,0.0001768,2]
[326830448,1715471448585,-151.0,0.0001768,2]
[326830449,1715471448594,-151.0,0.0001768,2]
[326830450,1715471448603,-151.0,0.0001768,2]
[326830451,1715471448611,-151.0,0.0001768,2]
[326830452,1715471448620,-151.0,0.0001768,2]
[326830453,1715471448629,-151.0,0.0001768,2]
[326830454,1715471448639,-151.0,0.0001768,2]
[326830455,1715471448648,-151.0,0.0001768,2]
[326830456,1715471448657,-151.0,0.0001768,2]
[326830457,1715471448667,-219.43716,0.0001768,2]
[326830458,1715471448675,-151.0,0.0001768,2]
[326830459,1715471448684,-151.0,0.0001768,2]
[326830460,1715471448693,-151.0,0.0001768,2]
[326830461,1715471448702,-151.0,0.0001768,2]
[326830462,1715471448711,-151.0,0.0001768,2]
[326830463,1715471448720,-151.0,0.0001768,2]
[326830464,1715471448729,-151.0,0.0001768,2]
[326830465,1715471448738,-151.0,0.0001768,2]
[326830466,1715471448747,-150.0,0.00017685,2]
[326830467,1715471448757,-150.0,0.00017686,2]
[326830468,1715471448766,-150.0,0.00017687,2]
[326830469,1715471448776,-150.0,0.00017688,2]
[326830470,1715471448785,-150.0,0.00017689,2]
[326830471,1715471448796,-150.0,0.00017691,2]
[326830472,1715471448805,-150.0,0.00017692,2]
[326830473,1715471448814,-150.0,0.00017698,2]
[326830474,1715471448823,-1485.99032302,0.00017699,2]
[326830475,1715471448833,-251.19245496,0.00017699,2]
[326830476,1715471448842,-875.314559,0.000177,2]
[326830477,1715471448850,-2487.47629,0.000177,2]
[326830478,1715471448859,-1561.57283666,0.00017701,2]
[326830479,1715471448868,-205.63148809,0.00017703,2]
[326830480,1715471448879,-150.0,0.00017705,2]
[326830481,1715471448888,-150.0,0.00017706,2]
[326830482,1715471448897,-150.0,0.00017708,2]
[326830483,1715471448906,-150.0,0.00017708,2]
[326830484,1715471448915,-150.0,0.00017708,2]
[326830485,1715471448924,-154.25087256,0.00017708,2]
[326830486,1715471448933,-150.0,0.00017709,2]
[326830487,1715471448941,-150.0,0.0001771,2]
[326830488,1715471448950,-150.0,0.00017712,2]
[326830489,1715471448959,-150.0,0.00017721,2]
[326830490,1715471448968,-150.0,0.00017726,2]
[326830491,1715471448977,-150.0,0.00017728,2]
[326830492,1715471448986,-150.0,0.00017731,2]
[326830493,1715471448995,-500.0,0.00017736,2]
[326830494,1715471449004,-150.0,0.00017738,2]
[326830495,1715471449013,-150.0,0.00017738,2]
[326830496,1715471449023,-150.0,0.00017738,2]
[326830497,1715471449032,-150.0,0.00017741,2]
[326830498,1715471449041,-150.0,0.00017741,2]
[326830499,1715471449051,-150.0,0.00017749,2]
[326830500,1715471449059,-150.0,0.00017755,2]
[326830501,1715471449068,-150.0,0.00017755,2]
[326830502,1715471449077,-150.0,0.00017756,2]
[326830503,1715471449086,-150.0,0.00017759,2]
[326830504,1715471449095,-150.0,0.00017759,2]
[326830505,1715471449104,-150.0,0.00017764,2]
[326830506,1715471449113,-150.0,0.00017768,2]
[326830507,1715471449122,-150.0,0.00017775,2]
[326830508,1715471449132,-245000.0,0.0001778,2]
[326830509,1715471449141,-181.20915018,0.0001778,2]
[326830510,1715471449151,-500.0,0.0001778,2]
[326830511,1715471449160,-151.952103,0.0001778,2]
[326830512,1715471449169,-151.0,0.0001778,2]
[326830513,1715471449178,-151.0,0.0001778,2]
[326830514,1715471449187,-151.0,0.0001778,2]
[326830515,1715471449196,-151.0,0.0001778,2]
[326830516,1715471449205,-151.0,0.0001778,2]
[326830517,1715471449214,-151.0,0.0001778,2]
[326830518,1715471449223,-151.0,0.0001778,2]
[326830519,1715471449231,-151.0,0.0001778,2]
[326830520,1715471449240,-151.0,0.0001778,2]
[326830521,1715471449249,-151.0,0.0001778,2]
[326830522,1715471449258,-151.0,0.0001778,2]
[326830523,1715471449268,-237.627094,0.0001778,2]
[326830524,1715471449474,-151.0,0.0001778,2]
[326830525,1715471449513,-151.0,0.0001778,2]
[326830526,1715471449524,-151.0,0.0001778,2]
[326830527,1715471449533,-151.0,0.0001778,2]
[326830528,1715471449543,-150.0,0.0001778,2]
[326830529,1715471449553,-151.0,0.0001778,2]
[326830530,1715471449564,-151.0,0.0001778,2]
[326830531,1715471449574,-151.0,0.0001778,2]
[326830532,1715471449582,-151.0,0.0001778,2]
[326830533,1715471449592,-151.0,0.0001778,2]
[326830534,1715471449601,-191.315755,0.0001778,2]
[326830535,1715471449610,-151.0,0.0001778,2]
[326830536,1715471449619,-151.0,0.0001778,2]
[326830537,1715471449628,-151.0,0.0001778,2]
[326830538,1715471449637,-151.0,0.0001778,2]
[326830539,1715471449647,-151.0,0.0001778,2]
[326830540,1715471449657,-151.0,0.0001778,2]
[326830541,1715471449666,-152.015892,0.0001778,2]
[326830542,1715471449675,-152.015892,0.0001778,2]
[326830543,1715471449685,-151.0,0.0001778,2]
[326830544,1715471449694,-151.0,0.0001778,2]
[326830545,1715471449704,-151.0,0.0001778,2]
[326830546,1715471449714,-151.0,0.0001778,2]
[326830547,1715471449723,-162.44854,0.0001778,2]
[326830548,1715471449733,-162.44854,0.0001778,2]
[326830549,1715471449743,-196.013329,0.0001778,2]
[326830550,1715471449752,-196.013329,0.0001778,2]
[326830551,1715471449761,-151.0,0.0001778,2]
[326830552,1715471449771,-151.0,0.0001778,2]
[326830553,1715471449780,-151.0,0.0001778,2]
[326830554,1715471449790,-151.0,0.0001778,2]
[326830555,1715471449798,-151.0,0.0001778,2]
[326830556,1715471449808,-174.238332,0.0001778,2]
[326830557,1715471449817,-587.70944,0.0001778,2]
[326830558,1715471449827,-174.238332,0.0001778,2]
[326830559,1715471449836,-151.0,0.0001778,2]
[326830560,1715471449846,-587.70944,0.0001778,2]
[326830561,1715471449856,-151.0,0.0001778,2]
[326830562,1715471449865,-151.0,0.0001778,2]
[326830563,1715471449874,-151.0,0.0001778,2]
[326830564,1715471449883,-151.0,0.0001778,2]
[326830565,1715471449893,-151.0,0.0001778,2]
[326830566,1715471449903,-151.0,0.0001778,2]
[326830567,1715471449912,-300.925526,0.0001778,2]
[326830568,1715471449921,-151.0,0.0001778,2]
[326830569,1715471449930,-300.925526,0.0001778,2]
[326830570,1715471449939,-151.0,0.0001778,2]
[326830571,1715471449948,-379.53128,0.0001778,2]
[326830572,1715471449957,-151.0,0.0001778,2]
[326830573,1715471449965,-379.53128,0.0001778,2]
[326830574,1715471449975,-444.016129,0.0001778,2]
[326830575,1715471449984,-444.016129,0.0001778,2]
[326830576,1715471449993,-151.0,0.0001778,2]
[326830577,1715471450002,-151.0,0.0001778,2]
[326830578,1715471450011,-151.0,0.0001778,2]
[326830579,1715471450020,-416.24104,0.0001778,2]
[326830580,1715471450029,-416.24104,0.0001778,2]
[326830581,1715471450038,-151.0,0.0001778,2]
[326830582,1715471450047,-1054.61751,0.0001778,2]
[326830583,1715471450056,-151.0,0.0001778,2]
[326830584,1715471450065,-151.0,0.0001778,2]
[326830585,1715471450075,-1054.61751,0.0001778,2]
[326830586,1715471450085,-219.5376,0.0001778,2]
[326830587,1715471450095,-247.799111,0.0001778,2]
[326830588,1715471450104,-247.799111,0.0001778,2]
[326830589,1715471450114,-151.0,0.0001778,2]
[326830590,1715471450124,-2087.454962,0.0001778,2]
[326830591,1715471450134,-151.0,0.0001778,2]
[326830592,1715471450145,-2087.454962,0.0001778,2]
[326830593,1715471450157,-151.0,0.0001778,2]
[326830594,1715471450167,-150.0,0.00017781,2]
[326830595,1715471450176,-150.0,0.00017784,2]
[326830596,1715471450185,-150.0,0.00017787,2]
[326830597,1715471450195,-150.0,0.00017788,2]
[326830598,1715471450204,-150.0,0.00017792,2]
[326830599,1715471450216,-150.0,0.00017794,2]
[326830600,1715471450226,-150.0,0.00017797,2]
[326830601,1715471450236,-150.0,0.00017799,2]
[326830602,1715471450245,-485.0,0.000178,2]
[326830603,1715471450254,-150.0,0.00017804,2]
[326830604,1715471450264,-150.0,0.00017808,2]
[326830605,1715471450273,-205.63148809,0.00017808,2]
[326830606,1715471450283,-150.0,0.0001781,2]
[326830607,1715471450292,-150.0,0.00017811,2]
[326830608,1715471450301,-150.0,0.00017816,2]
[326830609,1715471450312,-612.01762384,0.00017819,2]
[326830610,1715471450322,-150.0,0.00017821,2]
[326830611,1715471450331,-150.0,0.00017828,2]
[326830612,1715471450340,-156.75019115,0.00017829,2]
[326830613,1715471450350,-150.0,0.00017839,2]
[326830614,1715471450362,-150.0,0.00017846,2]
[326830615,1715471450371,-150.0,0.00017847,2]
[326830616,1715471450380,-150.0,0.00017857,2]
[326830617,1715471450389,-155.51708233,0.00017858,2]
[326830618,1715471450398,-214.0,0.00017858,2]
[326830619,1715471450407,-150.0,0.00017867,2]
[326830620,1715471450416,-700.0,0.0001787,2]
[326830621,1715471450426,-400.0,0.0001787,2]
[326830622,1715471450435,-150.0,0.0001787,2]
[326830623,1715471450444,-150.0,0.00017871,2]
[326830624,1715471450453,-185.7996887,0.00017877,2]
[326830625,1715471450462,-13037.2170868,0.00017877,2]
[326830626,1715471450472,-1996.07873679,0.00017878,2]
[326830627,1715471450481,-155.48306794,0.00017878,2]
[326830628,1715471450490,-366.94333179,0.00017878,2]
[326830629,1715471450500,-8365.74767712,0.00017878,2]
[326830630,1715471450510,-2577.03979424,0.00017878,2]
[326830631,1715471450520,-782.13638794,0.00017878,2]
[326830632,1715471450529,-207.66695698,0.00017879,2]
[326830633,1715471450538,-1953.4087616,0.00017879,2]
[326830634,1715471450548,-1993.07903443,0.0001788,2]
[326830635,1715471450557,-71881.34233413,0.0001788,2]
[326830636,1715471450566,-179.79467674,0.0001788,2]
[326830637,1715471450575,-2001.5785839,0.0001788,2]
[326830638,1715471450584,-167.928906,0.0001788,2]
[326830639,1715471450593,-151.0,0.0001788,2]
[326830640,1715471450602,-151.0,0.0001788,2]
[326830641,1715471450611,-151.0,0.0001788,2]
[326830642,1715471450620,-151.0,0.0001788,2]
[326830643,1715471450629,-151.0,0.0001788,2]
[326830644,1715471450638,-151.0,0.0001788,2]
[326830645,1715471450648,-151.0,0.0001788,2]
[326830646,1715471450657,-151.0,0.0001788,2]
[326830647,1715471450667,-151.0,0.0001788,2]
[326830648,1715471450676,-151.0,0.0001788,2]
[326830649,1715471450686,-151.0,0.0001788,2]
[326830650,1715471450696,-151.0,0.0001788,2]
[326830651,1715471450705,-151.0,0.0001788,2]
[326830652,1715471450714,-242.907424,0.0001788,2]
[326830653,1715471450723,-151.0,0.0001788,2]
[326830654,1715471450732,-151.0,0.0001788,2]
[326830655,1715471450741,-151.0,0.0001788,2]
[326830656,1715471450751,-151.0,0.0001788,2]
[326830657,1715471450760,-151.0,0.0001788,2]
[326830658,1715471450770,-151.0,0.0001788,2]
[326830659,1715471450779,-151.0,0.0001788,2]
[326830660,1715471450788,-152.015892,0.0001788,2]
[326830661,1715471450798,-152.015892,0.0001788,2]
[326830662,1715471450807,-152.015892,0.0001788,2]
[326830663,1715471450816,-152.015892,0.0001788,2]
[326830664,1715471450825,-151.0,0.0001788,2]
[326830665,1715471450834,-151.0,0.0001788,2]
[326830666,1715471450844,-151.0,0.0001788,2]
[326830667,1715471450853,-151.0,0.0001788,2]
[326830668,1715471450862,-151.0,0.0001788,2]
[326830669,1715471450872,-151.0,0.0001788,2]
[326830670,1715471450881,-180.590072,0.0001788,2]
[326830671,1715471450891,-162.44854,0.0001788,2]
[326830672,1715471450900,-162.44854,0.0001788,2]
[326830673,1715471450909,-162.44854,0.0001788,2]
[326830674,1715471450919,-162.44854,0.0001788,2]
[326830675,1715471450929,-196.013329,0.0001788,2]
[326830676,1715471450940,-196.013329,0.0001788,2]
[326830677,1715471450949,-196.013329,0.0001788,2]
[326830678,1715471450960,-196.013329,0.0001788,2]
[326830679,1715471450969,-151.0,0.0001788,2]
[326830680,1715471450978,-151.0,0.0001788,2]
[326830681,1715471450987,-151.0,0.0001788,2]
[326830682,1715471450996,-151.0,0.0001788,2]
[326830683,1715471451005,-151.0,0.0001788,2]
[326830684,1715471451014,-151.0,0.0001788,2]
[326830685,1715471451023,-151.0,0.0001788,2]
[326830686,1715471451033,-151.0,0.0001788,2]
[326830687,1715471451042,-151.0,0.0001788,2]
[326830688,1715471451051,-151.0,0.0001788,2]
[326830689,1715471451061,-174.238332,0.0001788,2]
[326830690,1715471451070,-174.238332,0.0001788,2]
[326830691,1715471451079,-174.238332,0.0001788,2]
[326830692,1715471451090,-174.238332,0.0001788,2]
[326830693,1715471451099,-587.70944,0.0001788,2]
[326830694,1715471451108,-587.70944,0.0001788,2]
[326830695,1715471451117,-151.0,0.0001788,2]
[326830696,1715471451126,-151.0,0.0001788,2]
[326830697,1715471451136,-587.70944,0.0001788,2]
[326830698,1715471451145,-587.70944,0.0001788,2]
[326830699,1715471451155,-151.0,0.0001788,2]
[326830700,1715471451164,-151.0,0.0001788,2]
[326830701,1715471451173,-151.0,0.0001788,2]
[326830702,1715471451182,-188.253806,0.0001788,2]
[326830703,1715471451191,-151.0,0.0001788,2]
[326830704,1715471451200,-151.0,0.0001788,2]
[326830705,1715471451209,-151.0,0.0001788,2]
[326830706,1715471451218,-151.0,0.0001788,2]
[326830707,1715471451227,-300.925526,0.0001788,2]
[326830708,1715471451236,-300.925526,0.0001788,2]
[326830709,1715471451245,-151.0,0.0001788,2]
[326830710,1715471451255,-151.0,0.0001788,2]
[326830711,1715471451264,-300.925526,0.0001788,2]
[326830712,1715471451273,-151.0,0.0001788,2]
[326830713,1715471451288,-300.925526,0.0001788,2]
[326830714,1715471451298,-151.0,0.0001788,2]
[326830715,1715471451308,-379.53128,0.0001788,2]
[326830716,1715471451318,-379.53128,0.0001788,2]
[326830717,1715471451327,-151.0,0.0001788,2]
[326830718,1715471451337,-151.0,0.0001788,2]
[326830719,1715471451347,-379.53128,0.0001788,2]
[326830720,1715471451359,-379.53128,0.0001788,2]
[326830721,1715471451369,-444.016129,0.0001788,2]
[326830722,1715471451379,-444.016129,0.0001788,2]
[326830723,1715471451389,-444.016129,0.0001788,2]
[326830724,1715471451399,-444.016129,0.0001788,2]
[326830725,1715471451409,-151.0,0.0001788,2]
[326830726,1715471451418,-151.0,0.0001788,2]
[326830727,1715471451428,-151.0,0.0001788,2]
[326830728,1715471451441,-151.0,0.0001788,2]
[326830729,1715471451451,-151.0,0.0001788,2]
[326830730,1715471451461,-151.0,0.0001788,2]
[326830731,1715471451470,-416.24104,0.0001788,2]
[326830732,1715471451480,-416.24104,0.0001788,2]
[326830733,1715471451490,-416.24104,0.0001788,2]
[326830734,1715471451499,-416.24104,0.0001788,2]
[326830735,1715471451510,-16853.94405109,0.0001788,2]
[326830736,1715471451519,-16853.94405101,0.0001788,2]
[326830737,1715471451530,-16853.94405101,0.0001788,2]
[326830738,1715471451540,-151.0,0.0001788,2]
[326830739,1715471451550,-16853.94405101,0.0001788,2]
[326830740,1715471451560,-151.0,0.0001788,2]
[326830741,1715471451570,-1054.61751,0.0001788,2]
[326830742,1715471451579,-1054.61751,0.0001788,2]
[326830743,1715471451588,-151.0,0.0001788,2]
[326830744,1715471451598,-151.0,0.0001788,2]
[326830745,1715471451608,-151.0,0.0001788,2]
[326830746,1715471451617,-151.0,0.0001788,2]
[326830747,1715471451627,-16853.94405101,0.0001788,2]
[326830748,1715471451636,-1054.61751,0.0001788,2]
[326830749,1715471451646,-1054.61751,0.0001788,2]
[326830750,1715471451656,-16853.94405101,0.0001788,2]
[326830751,1715471451666,-16853.94405101,0.0001788,2]
[326830752,1715471451676,-247.799111,0.0001788,2]
[326830753,1715471451685,-247.799111,0.0001788,2]
[326830754,1715471451695,-247.799111,0.0001788,2]
[326830755,1715471451704,-247.799111,0.0001788,2]
[326830756,1715471451714,-151.0,0.0001788,2]
[326830757,1715471451723,-151.0,0.0001788,2]
[326830758,1715471451733,-2087.454962,0.0001788,2]
[326830759,1715471451742,-2087.454962,0.0001788,2]
[326830760,1715471451752,-151.0,0.0001788,2]
[326830761,1715471451761,-151.0,0.0001788,2]
[326830762,1715471451771,-2087.454962,0.0001788,2]
[326830763,1715471451919,-2087.454962,0.0001788,2]
[326830764,1715471451929,-151.0,0.0001788,2]
[326830765,1715471451938,-151.0,0.0001788,2]
[326830766,1715471451948,-936.2557935,0.00017887,2]
[326830767,1715471451957,-1974.0135689,0.00017887,2]
[326830768,1715471451966,-150.60346641,0.00017963,2]
[326830769,1715471451975,-156.82624843,0.00017979,2]
[326830770,1715471451984,-6323.8096784,0.00017991,2]
[326830771,1715471451994,-152.015892,0.00017991,2]
[326830772,1715471452003,-152.015892,0.00017991,2]
[326830773,1715471452012,-151.0,0.00017991,2]
[326830774,1715471452021,-151.0,0.00017991,2]
[326830775,1715471452030,-151.0,0.00017991,2]
[326830776,1715471452039,-162.44854,0.00017991,2]
[326830777,1715471452049,-162.44854,0.00017991,2]
[326830778,1715471452058,-196.013329,0.00017991,2]
[326830779,1715471452067,-196.013329,0.00017991,2]
[326830780,1715471452076,-151.0,0.00017991,2]
[326830781,1715471452086,-151.0,0.00017991,2]
[326830782,1715471452095,-167.39884122,0.00017993,2]
[326830783,1715471452105,-1554.14942221,0.00018,2]
[326830784,1715471452114,-1108.08468352,0.00018,2]
[326830785,1715471452123,-500.0,0.00018,2]
[326830786,1715471452133,-2680.68828409,0.00018,2]
[326830787,1715471452143,-155.15400091,0.00018,2]
[326830788,1715471452160,-10955.74378756,0.00018,10]
[326830789,1715471452171,-1500.0,0.00018,2]
[326830790,1715471452180,-150.0,0.00018,2]
[326830791,1715471452190,-205.63148809,0.00018042,2]
[326830792,1715471452199,-205.63148809,0.00018081,2]
[326830793,1715471452209,-1657.61353267,0.000181,2]
[326830794,1715471452219,-156.75019115,0.00018111,2]
[326830795,1715471452229,-166.66666668,0.00018153,2]
[326830796,1715471452240,-205.63148809,0.00018161,2]
[326830797,1715471452250,-150.16275751,0.00018166,2]
[326830798,1715471452260,-153.97788333,0.00018183,2]
[326830799,1715471452269,-166.0,0.0001819,2]
[326830800,1715471452279,-155.1910345,0.00018194,2]
[326830801,1715471452288,-156.35550251,0.00018203,2]
[326830802,1715471452297,-150.16275751,0.00018208,2]
[326830803,1715471452306,-150.60346641,0.00018236,2]
[326830804,1715471452315,-162.15491776,0.00018302,2]
[326830805,1715471452324,-151.0,0.00018311,2]
[326830806,1715471452333,-151.0,0.00018311,2]
[326830807,1715471452342,-151.0,0.00018311,2]
[326830808,1715471452352,-174.238332,0.00018311,2]
[326830809,1715471452365,-174.238332,0.00018311,2]
[326830810,1715471452374,-587.70944,0.00018311,2]
[326830811,1715471452383,-188.129864,0.00018311,2]
[326830812,1715471452392,-587.70944,0.00018311,2]
[326830813,1715471452401,-151.0,0.00018311,2]
[326830814,1715471452411,-151.0,0.00018311,2]
[326830815,1715471452420,-151.0,0.00018311,2]
[326830816,1715471452429,-300.925526,0.00018311,2]
[326830817,1715471452439,-151.0,0.00018311,2]
[326830818,1715471452449,-300.925526,0.00018311,2]
[326830819,1715471452458,-151.0,0.00018311,2]
[326830820,1715471452468,-379.53128,0.00018311,2]
[326830821,1715471452477,-165.157102,0.00018311,2]
[326830822,1715471452486,-379.53128,0.00018311,2]
[326830823,1715471452495,-444.016129,0.00018311,2]
[326830824,1715471452504,-444.016129,0.00018311,2]
[326830825,1715471452514,-151.0,0.00018311,2]
[326830826,1715471452524,-151.0,0.00018311,2]
[326830827,1715471452534,-151.0,0.00018311,2]
[326830828,1715471452544,-416.24104,0.00018311,2]
[326830829,1715471452554,-416.24104,0.00018311,2]
[326830830,1715471452563,-16853.94405101,0.00018311,2]
[326830831,1715471452572,-151.0,0.00018338,2]
[326830832,1715471452581,-151.0,0.00018338,2]
[326830833,1715471452590,-150.16275751,0.00018339,2]
[326830834,1715471452599,-159.99258796,0.00018345,2]
[326830835,1715471452608,-155.5253498,0.00018371,2]
[326830836,1715471452617,-162.68567535,0.00018373,2]
[326830837,1715471452626,-399.28215327,0.00018401,2]
[326830838,1715471452635,-164.05,0.00018444,2]
[326830839,1715471452645,-170.16,0.00018444,2]
[326830840,1715471452654,-166.94,0.00018444,2]
[326830841,1715471452663,-156.82624843,0.00018459,2]
[326830842,1715471452673,-399.28215327,0.00018479,2]
[326830843,1715471452682,-1500.0,0.000185,2]
[326830844,1715471452691,-150.0,0.000185,2]
[326830845,1715471452700,-152.41806725,0.00018573,2]
[326830846,1715471452709,-6323.8096784,0.00018627,2]
[326830847,1715471452718,-162.15491776,0.00018636,2]
[326830848,1715471452727,-152.41806725,0.00018727,2]
[326830849,1715471452736,-205.63148809,0.00018804,2]
[326830850,1715471452744,-612.01762384,0.00018808,2]
[326830851,1715471452761,-181.20915016,0.0001884,2]
[326830852,1715471452775,-205.63148809,0.00018842,2]
[326830853,1715471452784,-153.5496588,0.00018878,2]
[326830854,1715471452794,-399.28215327,0.00018896,2]
[326830855,1715471452803,-150.16275751,0.00018897,2]
[326830856,1715471452812,-35647.6371126,0.00018916,2]
[326830857,1715471452821,-1140.5908776,0.00018916,2]
[326830858,1715471452830,-232.6798711,0.00018916,2]
[326830859,1715471452839,-16326.7119134,0.00018916,2]
[326830860,1715471452848,-1172.4878489,0.00018916,2]
[326830861,1715471452857,-2472.0882255,0.00018916,2]
[326830862,1715471452866,-151.0,0.00018916,2]
[326830863,1715471452875,-151.0,0.00018916,2]
[326830864,1715471452884,-151.0,0.00018916,2]
[326830865,1715471452894,-151.0,0.00018916,2]
[326830866,1715471452903,-151.0,0.00018916,2]
[326830867,1715471452912,-151.0,0.00018916,2]
[326830868,1715471452926,-151.0,0.00018916,2]
[326830869,1715471452937,-151.0,0.00018916,2]
[326830870,1715471452946,-151.0,0.00018916,2]
[326830871,1715471452955,-151.0,0.00018916,2]
[326830872,1715471452964,-1054.61751,0.00018916,2]
[326830873,1715471452974,-151.0,0.00018916,2]
[326830874,1715471452983,-151.0,0.00018916,2]
[326830875,1715471452992,-1054.61751,0.00018916,2]
[326830876,1715471453002,-247.799111,0.00018916,2]
[326830877,1715471453011,-247.799111,0.00018916,2]
[326830878,1715471453021,-151.0,0.00018916,2]
[326830879,1715471453030,-2087.454962,0.00018916,2]
[326830880,1715471453039,-2087.454962,0.00018916,2]
[326830881,1715471453047,-150.60346641,0.00018934,2]
[326830882,1715471453056,-156.82624843,0.00018939,2]
[326830883,1715471453065,-156.75019115,0.0001898,2]
[326830884,1715471453076,-5000.0,0.00019,2]
[326830885,1715471453085,-23401.85537524,0.00019,5]
[326830886,1715471453094,-1203.11779541,0.00019,2]
[326830887,1715471453103,-1000.0,0.00019,2]
[326830888,1715471453112,-500.0,0.00019,2]
[326830889,1715471453121,-155.51193687,0.00019,2]
[326830890,1715471453130,-166.0,0.00019,3]
[326830891,1715471453139,-300.0,0.00019,2]
[326830892,1715471453149,-1500.0,0.00019,2]
[326830893,1715471453158,-150.0,0.00019,2]
[326830894,1715471453167,-151.0,0.00019,2]
[326830895,1715471453176,-151.0,0.00019,2]
[326830896,1715471453186,-10000.0,0.00019011,2]
[326830897,1715471453195,-151.0,0.00019011,2]